bitfinex/quotes_BTCUSD_20250513
["timestamp","ask_amount","ask_price","bid_price","bid_amount"]
[1747139429949,0.002,103910.0,103880.0,0.02887854]
[1747139429950,0.009625,103890.0,103880.0,0.02887854]
[1747139430203,0.0973094,103890.0,103870.0,0.39738058]
[1747139430419,0.002,103910.0,103880.0,0.0305]
[1747139430639,0.002,103910.0,103880.0,0.01925269]
[1747139430640,0.00091379,103910.0,103880.0,0.01925269]
[1747139430987,0.01925158,103880.0,103870.0,0.02416817]
[1747139431089,0.04813058,103880.0,103870.0,0.00962732]
[1747139431321,0.01925288,103880.0,103870.0,0.0973094]
[1747139431561,0.00091379,103910.0,103870.0,0.0983094]
[1747139431789,0.00091379,103910.0,103900.0,0.02887316]
[1747139431790,0.01053666,103910.0,103900.0,0.02887316]
[1747139432005,0.01053666,103910.0,103890.0,0.01924992]
[1747139432006,0.01924844,103900.0,103890.0,0.01925066]
[1747139432227,0.00091379,103910.0,103870.0,0.34]
[1747139432449,0.02887576,103890.0,103880.0,0.02125223]
[1747139432665,0.02887576,103890.0,103880.0,0.04150466]
[1747139432666,0.02887465,103890.0,103880.0,0.04150466]
[1747139432910,0.02887048,103910.0,103890.0,0.3592501]
[1747139433158,0.1508773,103970.0,103930.0,0.00962149]
[1747139433416,0.01924047,103940.0,103930.0,0.02886464]
[1747139433614,0.00962065,103940.0,103930.0,0.02886493]
[1747139433830,0.1408773,103970.0,103930.0,0.02886493]
[1747139433831,0.00961945,103950.0,103930.0,0.001]
[1747139434051,0.01924102,103940.0,103930.0,0.0202427]
[1747139434274,0.00924084,103940.0,103930.0,0.01062176]
[1747139434505,0.16711333,103970.0,103950.0,0.00961963]
[1747139434749,0.16711333,103970.0,103930.0,0.0973094]
[1747139434750,0.03848178,103940.0,103930.0,0.0973094]
[1747139434972,0.0232414,103940.0,103930.0,0.002]
[1747139435193,0.004,103940.0,103930.0,0.002]
[1747139435437,0.004,103940.0,103930.0,0.24567386]
[1747139435667,0.004,103940.0,103930.0,0.25804375]
[1747139435884,0.01362019,103940.0,103930.0,0.0983094]
[1747139436105,0.02324122,103940.0,103930.0,0.0983094]
[1747139436326,0.1408773,103970.0,103930.0,0.2554001]
[1747139436548,0.01923954,103950.0,103940.0,0.0973094]
[1747139436772,0.1408773,103970.0,103930.0,0.00962158]
[1747139436773,0.0192414,103940.0,103930.0,0.00962158]
[1747139436994,0.08828702,103970.0,103950.0,0.001]
[1747139437219,0.7068181,103960.0,103950.0,0.001]
[1747139437441,0.7068181,103960.0,103940.0,0.002]
[1747139437442,0.00961982,103950.0,103940.0,0.002]
[1747139437666,0.41954974,103950.0,103940.0,0.002]
[1747139437888,0.10892922,103950.0,103940.0,0.002]
[1747139438343,0.00961982,103950.0,103940.0,0.002]
[1747139438688,0.10692922,103950.0,103940.0,0.002]
[1747139438907,0.00961982,103950.0,103940.0,0.003]
[1747139439370,0.60147002,103950.0,103940.0,0.001]
[1747139439622,0.60147002,103950.0,103890.0,0.05707522]
[1747139439623,0.01924862,103900.0,103890.0,0.05707522]
[1747139439832,0.48228942,103900.0,103890.0,0.05707522]
[1747139440313,0.01924862,103900.0,103890.0,0.05707522]
[1747139440541,0.00962445,103900.0,103890.0,0.05707522]
[1747139440777,0.47266525,103900.0,103890.0,0.05707522]
[1747139441007,0.01162445,103900.0,103890.0,0.05707522]
[1747139441236,0.00962538,103890.0,103880.0,0.002]
[1747139441496,0.3867495,103890.0,103880.0,0.002]
[1747139441728,0.89151568,103890.0,103880.0,0.002]
[1747139441961,0.10693478,103890.0,103880.0,0.002]
[1747139442212,0.00962538,103890.0,103880.0,0.002]
[1747139442486,0.01925066,103890.0,103880.0,0.342]
[1747139442732,0.01925066,103890.0,103880.0,0.002]
[1747139442944,0.11656006,103890.0,103880.0,0.002]
[1747139443161,0.11856006,103890.0,103880.0,0.003]
[1747139443616,0.10060905,103890.0,103880.0,0.003]
[1747139443834,0.00962519,103890.0,103880.0,0.002]
[1747139444051,0.10793459,103890.0,103880.0,0.005]
[1747139444264,0.10793459,103890.0,103880.0,0.007]
[1747139444743,0.10793459,103890.0,103840.0,0.41712702]
[1747139444744,0.0192616,103830.0,103820.0,0.09756648]
[1747139444980,0.0192653,103810.0,103780.0,0.5328226]
[1747139445247,0.0192653,103810.0,103780.0,0.49308702]
[1747139445461,0.0192653,103810.0,103780.0,0.52199292]
[1747139445675,0.0192653,103810.0,103800.0,0.07029824]
[1747139446118,0.50268253,103870.0,103800.0,0.24473466]
[1747139446398,0.0973094,103860.0,103820.0,0.34]
[1747139446620,0.0096288,103850.0,103840.0,0.01925974]
[1747139446856,0.00963001,103840.0,103830.0,0.45657081]
[1747139447097,0.01925974,103840.0,103830.0,0.34]
[1747139447528,0.01926271,103820.0,103810.0,0.36889819]
[1747139447747,0.01926178,103830.0,103820.0,0.02326364]
[1747139447748,0.03852246,103830.0,103820.0,0.02326364]
[1747139447965,0.34,103890.0,103830.0,0.00963047]
[1747139448186,0.02025845,103850.0,103840.0,0.003]
[1747139448407,0.0395154,103850.0,103840.0,0.37188947]
[1747139448629,0.0395154,103850.0,103840.0,0.13882871]
[1747139448630,0.001,103850.0,103840.0,0.13882871]
[1747139449117,0.001,103850.0,103840.0,0.02226012]
[1747139449332,0.02988605,103850.0,103840.0,0.13882871]
[1747139449558,0.01925344,103870.0,103850.0,0.00962843]
[1747139449772,0.01925344,103870.0,103860.0,0.0192565]
[1747139449773,0.02888159,103870.0,103860.0,0.0192565]
[1747139449986,0.02888159,103870.0,103860.0,0.00962834]
[1747139449987,0.01925464,103870.0,103860.0,0.00962834]
[1747139450253,0.01925344,103870.0,103860.0,0.01925604]
[1747139450507,0.01925604,103860.0,103850.0,0.34]
[1747139450743,0.28981271,103900.0,103850.0,0.00962908]
[1747139450955,0.001,103870.0,103850.0,0.00962927]
[1747139451185,0.01925751,103850.0,103840.0,0.46619822]
[1747139451402,0.01925733,103850.0,103840.0,0.46619822]
[1747139451632,0.03851503,103850.0,103840.0,0.46619887]
[1747139451909,0.02888391,103860.0,103850.0,0.01925826]
[1747139452170,0.01925798,103850.0,103840.0,0.34]
[1747139452403,0.0096289,103850.0,103840.0,0.38363001]
[1747139452614,0.00962862,103850.0,103840.0,0.35925983]
[1747139452842,0.00962862,103850.0,103840.0,0.36888947]
[1747139453084,0.01062834,103860.0,103840.0,0.37851902]
[1747139453308,0.01925622,103860.0,103850.0,0.01925826]
[1747139453536,0.01925177,103880.0,103870.0,0.01925455]
[1747139453792,0.0973094,103900.0,103870.0,0.00962723]
[1747139454097,0.0973094,103900.0,103870.0,0.02888104]
[1747139454098,0.03850372,103880.0,103870.0,0.02888104]
[1747139454196,0.04813011,103880.0,103870.0,0.02888104]
[1747139454423,0.03850446,103880.0,103870.0,0.01925427]
[1747139454667,0.02887871,103880.0,103870.0,0.01925437]
[1747139454907,0.02887871,103880.0,103850.0,1.02578262]
[1747139454908,0.01925057,103890.0,103880.0,0.34]
[1747139455611,0.02888085,103870.0,103850.0,0.1088129]
[1747139455852,0.01925455,103870.0,103860.0,0.34]
[1747139456092,0.01925455,103870.0,103850.0,0.16760764]
[1747139456093,0.01925604,103860.0,103850.0,0.4373094]
[1747139456314,0.28983194,103890.0,103840.0,0.07992834]
[1747139456315,0.0973094,103870.0,103840.0,0.07992834]
[1747139456553,0.03851559,103850.0,103840.0,0.07029824]
[1747139456773,0.00962853,103850.0,103840.0,0.03851949]
[1747139457000,0.01925659,103860.0,103850.0,0.36888715]
[1747139457213,0.01925604,103860.0,103850.0,0.346]
[1747139457433,0.02988364,103860.0,103850.0,0.38088735]
[1747139457656,0.02025538,103860.0,103850.0,0.39051597]
[1747139457894,0.02025538,103860.0,103850.0,0.37125845]
[1747139457895,0.02025529,103860.0,103850.0,0.37125845]
[1747139458114,0.02025529,103860.0,103850.0,0.006]
[1747139458115,0.01925604,103860.0,103850.0,0.006]
[1747139458325,0.0385117,103860.0,103850.0,0.01562927]
[1747139458570,0.01062704,103870.0,103860.0,0.0192564]
[1747139458789,0.19250571,103900.0,103840.0,0.01162936]
[1747139458790,0.01925604,103860.0,103840.0,0.01162936]
[1747139459022,0.00962843,103850.0,103840.0,0.48884098]
[1747139459247,0.01925604,103860.0,103850.0,0.34]
[1747139459248,0.01925659,103860.0,103850.0,0.34]
[1747139459472,0.01925659,103860.0,103850.0,0.34962918]
[1747139459693,0.01925659,103860.0,103850.0,0.34]
[1747139460139,0.01925659,103860.0,103820.0,0.07029824]
[1747139460140,0.01926178,103830.0,103820.0,0.07029824]
[1747139460817,0.01926178,103830.0,103800.0,0.09731399]
[1747139460818,0.1926411,103820.0,103800.0,0.09731399]
[1747139461045,0.75371403,103820.0,103800.0,0.09731399]
[1747139461272,0.75371403,103820.0,103790.0,0.11033161]
[1747139461273,0.21194538,103800.0,103790.0,0.11033161]
[1747139461501,0.30925478,103800.0,103790.0,0.11033161]
[1747139462010,0.11657656,103800.0,103790.0,0.11033161]
[1747139462231,0.0973094,103800.0,103790.0,0.55521949]
[1747139462459,0.11657694,103800.0,103790.0,0.47809247]
[1747139462679,0.01926754,103800.0,103790.0,0.57540187]
[1747139462911,0.01926754,103800.0,103790.0,0.47809247]
[1747139463131,0.01926754,103800.0,103790.0,0.341]
[1747139463132,0.02026754,103800.0,103790.0,0.341]
[1747139463354,0.11657694,103800.0,103790.0,0.001]
[1747139463594,0.10694275,103800.0,103790.0,0.02990338]
[1747139463813,0.10694275,103800.0,103790.0,0.37531656]
[1747139463814,0.02890051,103800.0,103790.0,0.37531656]
[1747139464041,0.01926716,103800.0,103790.0,0.341]
[1747139464294,0.001,103800.0,103790.0,0.36990338]
[1747139464529,0.001,103800.0,103790.0,0.93097631]
[1747139464754,0.3665855,103880.0,103810.0,0.80376353]
[1747139464755,0.19255848,103880.0,103810.0,0.80376353]
[1747139464979,0.0192616,103830.0,103820.0,0.0973094]
[1747139465211,0.19261384,103840.0,103810.0,0.34]
[1747139465441,0.19261384,103840.0,103790.0,0.001]
[1747139465442,0.01926716,103800.0,103790.0,0.001]
[1747139465900,0.34345432,103820.0,103790.0,0.34]
[1747139466147,0.02890032,103800.0,103790.0,0.34]
[1747139466373,0.01926921,103790.0,103780.0,0.03]
[1747139466608,0.11657861,103790.0,103780.0,0.03]
[1747139467953,0.80003293,103790.0,103780.0,0.03]
[1747139468179,0.01927274,103770.0,103760.0,0.002]
[1747139468404,0.65277039,103770.0,103760.0,0.002]
[1747139468631,0.65377039,103770.0,103760.0,0.002]
[1747139468856,0.21204752,103750.0,103740.0,0.002]
[1747139469080,0.65281124,103750.0,103740.0,0.0021458]
[1747139469302,0.30935692,103750.0,103740.0,0.0021458]
[1747139470474,0.22168533,103750.0,103740.0,0.42027282]
[1747139470755,0.21204752,103750.0,103740.0,0.0051458]
[1747139470995,0.65281124,103750.0,103740.0,0.0051458]
[1747139472155,0.21210886,103720.0,103710.0,0.000177]
[1747139472381,0.30941826,103720.0,103710.0,0.19302243]
[1747139472621,0.21208786,103730.0,103720.0,0.54246808]
[1747139472857,0.00014537,103750.0,103720.0,0.41712702]
[1747139473096,0.2120886,103730.0,103720.0,0.34]
[1747139473329,0.20246799,103720.0,103710.0,0.000177]
[1747139473566,0.64323171,103720.0,103710.0,0.000177]
[1747139474050,0.64323171,103720.0,103710.0,0.003177]
[1747139474291,0.21217023,103690.0,103680.0,0.002]
[1747139474775,0.65293395,103690.0,103680.0,0.002]
[1747139475019,0.30947963,103690.0,103680.0,0.002]
[1747139475486,0.00964329,103690.0,103680.0,0.54454619]
[1747139475716,0.00014524,103690.0,103680.0,0.99495459]
[1747139475948,0.00014524,103690.0,103680.0,1.1660084]
[1747139476186,0.00014524,103690.0,103680.0,1.3398344]
[1747139476424,0.00214524,103690.0,103680.0,1.3398344]
[1747139476651,0.00014524,103690.0,103680.0,1.3398344]
[1747139476877,0.00114524,103690.0,103680.0,1.3408344]
[1747139477104,0.00214524,103690.0,103680.0,1.3478344]
[1747139477390,0.00014524,103690.0,103680.0,0.89907068]
[1747139477613,0.00014524,103690.0,103680.0,0.88772468]
[1747139477834,0.00014524,103690.0,103680.0,0.89472468]
[1747139477835,0.00114524,103690.0,103680.0,0.89472468]
[1747139478504,0.02043266,103690.0,103680.0,0.70331063]
[1747139478728,0.01178853,103690.0,103680.0,0.71428974]
[1747139478967,0.01178853,103690.0,103680.0,0.014]
[1747139478968,0.21431547,103690.0,103680.0,0.014]
[1747139479435,0.21331547,103690.0,103680.0,0.009]
[1747139479664,0.02043284,103690.0,103680.0,0.009]
[1747139479896,0.21431547,103690.0,103680.0,0.014]
[1747139480118,0.19654648,103690.0,103680.0,0.007]
[1747139480346,0.29285588,103690.0,103680.0,0.002]
[1747139480574,0.29285588,103690.0,103680.0,0.004]
[1747139480575,0.29385588,103690.0,103680.0,0.004]
[1747139481026,0.02028704,103690.0,103680.0,0.21619087]
[1747139481290,0.01064338,103690.0,103680.0,0.39998475]
[1747139481540,0.21317023,103690.0,103680.0,0.19690123]
[1747139481777,0.20246925,103720.0,103680.0,0.66114468]
[1747139482011,0.20246925,103720.0,103710.0,0.34]
[1747139482247,0.01928166,103720.0,103710.0,0.57141283]
[1747139482509,0.21208823,103730.0,103720.0,0.55210924]
[1747139482732,0.21208869,103730.0,103720.0,0.34]
[1747139482969,0.21214977,103700.0,103690.0,0.03359827]
[1747139483215,0.20252657,103690.0,103680.0,0.4423094]
[1747139483435,0.19286403,103700.0,103690.0,0.19288263]
[1747139483678,0.19287987,103720.0,103710.0,0.34]
[1747139484146,0.19287987,103720.0,103690.0,0.76521335]
[1747139484147,0.21214977,103700.0,103690.0,0.09779531]
[1747139484386,0.01928518,103700.0,103690.0,0.00048591]
[1747139484653,0.29018927,103720.0,103710.0,0.00964217]
[1747139484875,0.22177093,103710.0,103700.0,0.34]
[1747139485187,0.21212931,103710.0,103700.0,0.34]
[1747139485455,0.20250704,103700.0,103690.0,0.00448591]
[1747139485685,0.30081644,103700.0,103690.0,0.00448591]
[1747139485936,0.29981644,103700.0,103690.0,0.00048591]
[1747139486188,0.00964292,103700.0,103690.0,0.53336854]
[1747139486425,0.19284543,103710.0,103700.0,0.20550723]
[1747139486426,0.22277111,103710.0,103700.0,0.20550723]
[1747139486667,0.22277111,103710.0,103700.0,0.2344357]
[1747139486668,0.001,103710.0,103700.0,0.2344357]
[1747139486902,0.01928119,103720.0,103710.0,0.55210954]
[1747139487136,0.02892197,103720.0,103710.0,0.65906056]
[1747139487368,0.01927794,103740.0,103730.0,0.0192798]
[1747139487591,0.20244866,103730.0,103720.0,0.34]
[1747139487816,0.01927923,103730.0,103720.0,0.65905932]
[1747139488040,0.1928249,103750.0,103730.0,0.56172836]
[1747139488273,0.1928249,103750.0,103730.0,0.54244866]
[1747139488274,0.00963911,103740.0,103730.0,0.54244866]
[1747139488499,0.02891733,103740.0,103730.0,0.34964041]
[1747139488732,0.21221367,103740.0,103730.0,0.34]
[1747139489214,0.21221367,103740.0,103710.0,0.34964227]
[1747139489215,0.22176267,103720.0,103710.0,0.34964227]
[1747139489432,0.19283491,103730.0,103720.0,0.20246781]
[1747139489433,0.0192798,103730.0,103720.0,0.20246781]
[1747139489661,0.00963976,103730.0,103720.0,0.31905914]
[1747139489890,0.00114551,103740.0,103730.0,0.62432836]
[1747139490139,0.00214551,103740.0,103730.0,0.72163776]
[1747139490384,0.00114551,103740.0,103730.0,0.72163776]
[1747139490623,0.00114551,103740.0,103730.0,0.81894716]
[1747139491294,0.00114551,103740.0,103730.0,2.00493843]
[1747139491520,0.00014551,103740.0,103730.0,1.08875003]
[1747139491763,0.00014551,103740.0,103730.0,0.93149403]
[1747139491949,0.00014551,103740.0,103730.0,0.73595623]
[1747139492209,0.00014551,103740.0,103730.0,0.75523603]
[1747139492435,0.23132869,103750.0,103740.0,0.53278966]
[1747139492707,0.21204678,103750.0,103740.0,0.65901639]
[1747139492943,0.02127217,103770.0,103760.0,0.54239012]
[1747139493205,0.22364316,103770.0,103760.0,0.34]
[1747139493424,0.21400703,103770.0,103760.0,0.34]
[1747139494113,0.21400703,103770.0,103730.0,0.13090767]
[1747139494114,0.20242895,103740.0,103730.0,0.13090767]
[1747139494337,0.02892773,103700.0,103690.0,0.68013542]
[1747139494578,0.02892773,103700.0,103690.0,1.17033032]
[1747139494821,0.23143534,103700.0,103690.0,0.89930561]
[1747139495058,0.19286085,103710.0,103700.0,0.01928612]
[1747139495305,0.0096418,103710.0,103700.0,0.30945935]
[1747139495538,0.0096418,103710.0,103690.0,0.62917558]
[1747139495539,0.20250704,103700.0,103690.0,0.00048591]
[1747139495761,0.20250704,103700.0,103690.0,0.00448591]
[1747139495762,0.76570837,103700.0,103690.0,0.00448591]
[1747139496213,0.29981644,103700.0,103690.0,0.00048591]
[1747139496723,0.33251644,103700.0,103690.0,0.00048591]
[1747139497155,0.33851644,103700.0,103690.0,0.00148591]
[1747139497376,0.36931644,103700.0,103690.0,0.00148591]
[1747139497589,0.36331644,103700.0,103690.0,0.00048591]
[1747139497813,0.23452657,103690.0,103680.0,0.002]
[1747139498062,0.20252657,103690.0,103680.0,0.002]
[1747139498287,0.29983597,103690.0,103680.0,0.002]
[1747139498966,0.01928742,103690.0,103680.0,0.54454619]
[1747139499209,0.00748453,103700.0,103690.0,0.20252666]
[1747139499443,0.00648453,103700.0,103690.0,0.73596541]
[1747139499683,0.00648453,103700.0,103690.0,0.4703094]
[1747139499684,0.2126343,103700.0,103690.0,0.4703094]
[1747139499913,0.2126343,103700.0,103690.0,0.34]
[1747139500148,0.20299157,103700.0,103690.0,0.34]
[1747139500773,0.20299157,103700.0,103690.0,0.3772]
[1747139500996,0.01976999,103700.0,103690.0,0.68630791]
[1747139501218,0.22227675,103700.0,103690.0,0.65737701]
[1747139501450,0.22227675,103700.0,103690.0,0.45485025]
[1747139501451,0.2222775,103700.0,103690.0,0.45485025]
[1747139501700,0.21263477,103700.0,103690.0,0.36054085]
[1747139502163,0.21263477,103700.0,103690.0,0.35454085]
[1747139502406,0.21563477,103700.0,103690.0,0.34]
[1747139502637,0.21463477,103700.0,103690.0,0.34]
[1747139502860,0.31194417,103700.0,103690.0,0.34]
[1747139503089,0.21263477,103700.0,103690.0,0.34]
[1747139503325,0.01012726,103700.0,103690.0,0.67466414]
[1747139503549,0.2126343,103700.0,103690.0,0.341]
[1747139503807,0.2146343,103700.0,103690.0,0.341]
[1747139504551,0.3119437,103700.0,103690.0,0.341]
[1747139504787,0.3119437,103700.0,103690.0,0.34]
[1747139505020,0.3149437,103700.0,103690.0,0.34]
[1747139505254,0.3129437,103700.0,103690.0,0.34]
[1747139505488,0.3129437,103700.0,103680.0,0.002]
[1747139505489,0.20252657,103690.0,103680.0,0.002]
[1747139506199,0.29983597,103690.0,103680.0,0.002]
[1747139506451,0.87305492,103690.0,103680.0,0.002]
[1747139506695,1.26389577,103690.0,103680.0,0.002]
[1747139506930,0.67710309,103670.0,103660.0,0.00626276]
[1747139507163,0.77441249,103670.0,103660.0,0.00626276]
[1747139507392,0.65409356,103670.0,103660.0,0.00626276]
[1747139507628,0.68519356,103670.0,103660.0,0.00626276]
[1747139508333,0.71819356,103670.0,103660.0,0.00626276]
[1747139508559,1.05819356,103670.0,103660.0,0.00626276]
[1747139508805,1.05819356,103670.0,103660.0,0.00726276]
[1747139508806,1.03119356,103670.0,103660.0,0.00726276]
[1747139509044,0.68662056,103670.0,103660.0,0.00726276]
[1747139509285,1.03119356,103670.0,103660.0,0.00726276]
[1747139509532,1.18491933,103670.0,103660.0,0.00726276]
[1747139510267,1.19946018,103670.0,103660.0,0.00726276]
[1747139510523,1.22620496,103670.0,103660.0,0.00726276]
[1747139510753,1.12121933,103670.0,103660.0,0.00726276]
[1747139510983,1.15351933,103670.0,103660.0,0.00726276]
[1747139511214,0.31552056,103670.0,103660.0,0.00726276]
[1747139511444,0.32252056,103670.0,103660.0,0.00826276]
[1747139512417,0.22521116,103670.0,103660.0,0.00826276]
[1747139512642,0.22521116,103670.0,103660.0,0.56438879]
[1747139512643,0.21821116,103670.0,103660.0,0.56438879]
[1747139512882,0.21821116,103670.0,103660.0,0.34726276]
[1747139512883,0.21621153,103670.0,103660.0,0.34726276]
[1747139513120,0.21921153,103670.0,103660.0,0.37145053]
[1747139513347,0.20656573,103670.0,103660.0,0.34726276]
[1747139513581,0.004,103670.0,103660.0,0.65205146]
[1747139513823,0.22585686,103670.0,103660.0,0.67134492]
[1747139514039,0.2355021,103670.0,103660.0,0.67134492]
[1747139514275,0.004,103670.0,103660.0,1.30569572]
[1747139514537,0.20254619,103680.0,103670.0,0.35454085]
[1747139514778,0.20256564,103670.0,103660.0,0.00726276]
[1747139514998,0.21221153,103670.0,103660.0,0.34726276]
[1747139515225,0.21221153,103670.0,103660.0,0.00726276]
[1747139515450,0.21321153,103670.0,103660.0,0.01126276]
[1747139515678,0.21321153,103670.0,103660.0,0.01026276]
[1747139515961,0.21221134,103670.0,103660.0,0.03450305]
[1747139516186,0.21221134,103670.0,103660.0,0.02080361]
[1747139516405,0.21221134,103670.0,103660.0,0.02280361]
[1747139516406,0.21321134,103670.0,103660.0,0.02280361]
[1747139516637,0.21321134,103670.0,103660.0,0.01026276]
[1747139518010,0.21221134,103670.0,103660.0,0.00626276]
[1747139518237,0.21221134,103670.0,103660.0,0.00926276]
[1747139518689,0.30952074,103670.0,103660.0,0.00626276]
[1747139518943,0.38764776,103670.0,103660.0,0.00626276]
[1747139519174,0.38964776,103670.0,103660.0,0.00726276]
[1747139519683,0.01930064,103620.0,103610.0,0.0156405]
[1747139519921,0.21231357,103620.0,103610.0,0.0156405]
[1747139521065,0.20266339,103620.0,103610.0,0.35578601]
[1747139521302,0.20266339,103620.0,103610.0,0.2800953]
[1747139521539,0.19301087,103630.0,103610.0,0.2800953]
[1747139521540,0.00964915,103630.0,103620.0,0.54266283]
[1747139521776,0.19791984,103670.0,103660.0,0.19293845]
[1747139522019,0.19791984,103670.0,103660.0,0.20258462]
[1747139522020,0.01929076,103670.0,103660.0,0.20258462]
[1747139522272,0.19296248,103690.0,103680.0,0.20254619]
[1747139522273,0.00964375,103690.0,103680.0,0.20254619]
[1747139522497,0.01928928,103680.0,103670.0,0.56675164]
[1747139522736,0.04822314,103680.0,103670.0,0.65441589]
[1747139522970,0.002,103710.0,103690.0,0.35928723]
[1747139523202,0.19484543,103710.0,103700.0,0.34]
[1747139523430,0.20252648,103690.0,103680.0,0.01454085]
[1747139523705,0.19484543,103710.0,103680.0,0.6543957]
[1747139523943,0.19484543,103710.0,103690.0,0.37607663]
[1747139523944,0.02892792,103700.0,103690.0,0.37607663]
[1747139524183,0.02892792,103700.0,103690.0,0.04514085]
[1747139524184,0.21214996,103700.0,103690.0,0.04514085]
[1747139524415,0.20448751,103710.0,103700.0,0.2266908]
[1747139524654,0.002,103710.0,103700.0,1.21218444]
[1747139524884,0.002,103710.0,103700.0,1.57432284]
[1747139525112,0.0309255,103710.0,103700.0,1.20254189]
[1747139525358,0.0309255,103710.0,103700.0,1.21218444]
[1747139525359,0.002,103710.0,103700.0,1.21218444]
[1747139525806,0.01164162,103710.0,103700.0,1.20254189]
[1747139526025,0.21412931,103710.0,103700.0,0.4695094]
[1747139526260,0.21412931,103710.0,103700.0,0.34]
[1747139526926,0.002,103710.0,103700.0,0.67364275]
[1747139527144,0.002,103710.0,103700.0,0.71655738]
[1747139527145,0.22377084,103710.0,103700.0,0.71655738]
[1747139527371,0.23341283,103710.0,103700.0,0.48295025]
[1747139527593,0.002,103710.0,103700.0,0.67364275]
[1747139527815,0.002,103710.0,103700.0,1.20844152]
[1747139527816,0.004,103710.0,103700.0,1.20844152]
[1747139528045,0.03292568,103710.0,103700.0,0.7331003]
[1747139528270,0.004,103710.0,103700.0,1.31261111]
[1747139528711,0.0319254,103710.0,103700.0,0.7321004]
[1747139528928,0.01364162,103710.0,103700.0,1.21808454]
[1747139529164,0.004,103710.0,103700.0,1.21808454]
[1747139529389,0.20648695,103710.0,103700.0,0.52095025]
[1747139529623,0.20648695,103710.0,103700.0,0.345]
[1747139529624,0.21612931,103710.0,103700.0,0.345]
[1747139529855,0.21612931,103710.0,103700.0,0.005]
[1747139530292,0.21612931,103710.0,103700.0,0.21714995]
[1747139530549,0.22477148,103710.0,103700.0,0.20650713]
[1747139530805,0.21412968,103710.0,103700.0,0.20250713]
[1747139531079,0.22377046,103710.0,103700.0,0.65435738]
[1747139531459,0.03192568,103710.0,103700.0,0.68528595]
[1747139531546,0.003,103710.0,103700.0,0.68528577]
[1747139531810,0.002,103710.0,103700.0,1.08920856]
[1747139532285,0.003,103710.0,103700.0,1.50688856]
[1747139532523,0.01927738,103740.0,103730.0,0.63966921]
[1747139532778,0.20240959,103750.0,103740.0,0.34]
[1747139532779,0.22168607,103750.0,103740.0,0.34]
[1747139533015,0.21204799,103750.0,103740.0,0.53278966]
[1747139533240,0.21204799,103750.0,103740.0,0.34]
[1747139533699,0.21204799,103750.0,103740.0,0.65427939]
[1747139533978,0.01012303,103750.0,103740.0,0.71802199]
[1747139534247,0.00048513,103750.0,103740.0,1.12534478]
[1747139534474,0.01012294,103750.0,103740.0,0.74659652]
[1747139534712,0.00048513,103750.0,103740.0,1.49624131]
[1747139534934,0.00048513,103750.0,103740.0,1.34355331]
[1747139535156,0.00048513,103750.0,103740.0,0.82462761]
[1747139535378,0.00048513,103750.0,103740.0,2.08261723]
[1747139535635,0.03090831,103770.0,103760.0,0.6391051]
[1747139535636,0.002,103770.0,103760.0,0.6391051]
[1747139535866,0.002,103770.0,103760.0,2.30714329]
[1747139536092,0.002,103770.0,103760.0,2.19718069]
[1747139536318,0.002,103770.0,103760.0,2.15348369]
[1747139536568,0.002,103770.0,103760.0,2.12806369]
[1747139537029,0.002,103770.0,103760.0,2.05411669]
[1747139537267,0.002,103770.0,103760.0,1.59424669]
[1747139537515,0.002,103770.0,103760.0,1.95717169]
[1747139537760,0.002,103790.0,103780.0,0.98608516]
[1747139538008,0.22520521,103850.0,103780.0,0.98608516]
[1747139538009,0.0096288,103850.0,103840.0,0.5422341]
[1747139538257,0.26976176,103870.0,103850.0,0.34]
[1747139538258,0.2793028,103870.0,103850.0,0.34]
[1747139538501,0.2793028,103870.0,103860.0,0.54219525]
[1747139538502,0.0963812,103870.0,103860.0,0.54219525]
[1747139538752,0.0963812,103870.0,103840.0,0.54714485]
[1747139538753,0.01925714,103850.0,103840.0,0.54714485]
[1747139538979,0.01011359,103860.0,103850.0,0.21184371]
[1747139539254,0.2026805,103860.0,103850.0,0.28989485]
[1747139539494,0.21230782,103860.0,103850.0,0.30915311]
[1747139539740,0.22193625,103860.0,103850.0,0.11185025]
[1747139539993,0.20221453,103850.0,103840.0,0.34]
[1747139540225,0.20221453,103850.0,103840.0,0.4373094]
[1747139540463,0.20221453,103850.0,103840.0,0.5346188]
[1747139540711,0.19305234,103860.0,103850.0,0.23601355]
[1747139540712,0.01011303,103860.0,103850.0,0.23601355]
[1747139540944,0.21230838,103860.0,103850.0,0.28989485]
[1747139541158,0.23156422,103860.0,103850.0,0.29952403]
[1747139541418,0.21230874,103860.0,103850.0,0.0973094]
[1747139541953,0.20221453,103850.0,103840.0,0.342]
[1747139542212,0.20221453,103850.0,103840.0,0.4393094]
[1747139542460,0.20221453,103850.0,103840.0,0.002]
[1747139542693,0.20223401,103840.0,103830.0,0.75648]
[1747139543156,0.21186393,103840.0,103830.0,0.75648]
[1747139543389,0.19405234,103860.0,103840.0,0.34]
[1747139543608,0.20221453,103850.0,103840.0,0.4373094]
[1747139543825,0.20221453,103850.0,103840.0,0.34]
[1747139544300,0.20221453,103850.0,103810.0,0.41624]
[1747139544301,0.21190455,103820.0,103810.0,0.41624]
[1747139544767,0.02890284,103790.0,103780.0,0.12870938]
[1747139544992,0.22160037,103790.0,103780.0,0.0973094]
[1747139545222,0.1926411,103820.0,103800.0,0.01926735]
[1747139545442,0.1926411,103820.0,103810.0,0.54229255]
[1747139545443,0.02889458,103820.0,103810.0,0.54229255]
[1747139545661,0.23231356,103820.0,103810.0,0.20629264]
[1747139545901,0.00014556,103820.0,103810.0,0.68696331]
[1747139546139,0.00977696,103820.0,103810.0,0.77589078]
[1747139546374,0.20341852,103820.0,103810.0,0.0973094]
[1747139546604,0.19378666,103820.0,103810.0,0.00963298]
[1747139546949,0.19378666,103820.0,103810.0,0.67242266]
[1747139546950,0.00114556,103820.0,103810.0,0.67242266]
[1747139547074,0.23231319,103820.0,103810.0,0.31886754]
[1747139547302,0.02040827,103820.0,103810.0,0.42629674]
[1747139547571,0.21305011,103820.0,103810.0,0.0973094]
[1747139547793,0.21205011,103820.0,103810.0,0.4373094]
[1747139548040,0.00114556,103820.0,103810.0,1.01369838]
[1747139548314,0.00114556,103820.0,103810.0,1.09616332]
[1747139548833,0.00114556,103820.0,103810.0,1.33906132]
[1747139549083,0.00114556,103820.0,103810.0,1.43637072]
[1747139549326,0.20221407,103850.0,103840.0,0.55184718]
[1747139549548,0.19258545,103850.0,103820.0,0.6088411]
[1747139549770,0.19258545,103850.0,103830.0,0.22150622]
[1747139549771,0.00962973,103840.0,103830.0,0.22150622]
[1747139550000,0.0096289,103850.0,103840.0,0.54223355]
[1747139550242,0.20260029,103860.0,103840.0,0.55186392]